[Event "Oslo Chess Festival 2017"]
[Site "Oslo"]
[Date "2017.09.30"]
[Round "2"]
[White "Taksrud, Vidar"]
[Black "Mikalsen, Erlend"]
[Result "1/2-1/2"]
[ECO "D01"]
[WhiteElo "1983"]
[BlackElo "2322"]
[Annotator "NA"]
[PlyCount "52"]
[EventDate "2017.??.??"]
[EventType "swiss"]
[EventCountry "NOR"]
[SourceTitle "playchess.com"]
[Source "ChessBase"]
[SourceQuality "1"]
[TimeControl "5400+30"]

{[%evp 8,50,-10,32767,-24,32767,-23,32767,32767,-25,-10,-36,-21,-50,-41,-61,-37,32767,-47,-54,-50,-14,32767,-13,32767,32767,0,-34,-30,32767,32767,32767,32767,44,44,28,32,32767,32767,32767,39,18,41,24,22]} 1. Nc3 {[%emt 0:00:09]} d5 {[%emt 0:00:07]} 2. d4 {[%emt 0:00:10]} Nf6 {[%emt 0:00:04]} 3. Bg5 {[%emt 0:00:26]} Nbd7 {[%emt 0:00:09]} 4. e3 {[%emt 0:00:52]} e6 {[%emt 0:01:44]} 5. Nf3 {[%emt 0:02:47]} a6 {[%emt 0:03:54] D01: Veresov Opening} (5... c5 6. dxc5 Bxc5 7. Bd3 h6 8. Bh4 Be7 9. O-O O-O 10. Qe2 Nc5 11. Rfd1 b6 12. Ne5 Bb7 13. Nb5 {½-½ (114) Sean,W (2403)-Shyam,S (2536) Ho Chi Minh City 2017}) 6. Be2 {[%emt 0:03:11]} Be7 {[%emt 0:06:20]} 7. O-O {[%emt 0:01:48]} c5 {[%emt 0:07:22]} 8. a4 {[%emt 0:03:50]} O-O {[%emt 0:01:57]} 9. Re1 {[%emt 0:05:04]} b6 {[%emt 0:00:58]} 10. Bf1 {[%emt 0:01:17]} Bb7 {[%emt 0:00:05]} 11. Ne2 $146 {[%emt 0:06:10]} ({Predecessor:} 11. g3 h6 12. Bxf6 Bxf6 13. Bg2 Rc8 14. Rb1 {½-½ (36) Khudaya,A (2054)-Savushkina,E (2155) Minsk 2007}) 11... b5 {[%emt 0:03:32]} 12. Ng3 {[%emt 0:01:29]} b4 {[%emt 0:02:53]} 13. c3 {[%emt 0:03:13]} h6 {[%emt 0:00:52]} 14. Bxf6 {[%emt 0:01:13]} Nxf6 {[%emt 0:00:23]} 15. cxb4 {[%emt 0:02:21]} cxb4 {[%emt 0:00:38]} 16. Ne5 {[%emt 0:01:25]} Rc8 {[%emt 0:01:08]} 17. Rc1 {[%emt 0:00:27]} Rxc1 {[%emt 0:00:36]} 18. Qxc1 {[%emt 0:00:10]} Qa5 {[%emt 0:00:02]} 19. Nc6 {[%emt 0:01:04]} Qc7 {[%emt 0:02:02]} 20. Nxe7+ {[%emt 0:02:56]} Qxe7 {[%emt 0:00:04]} 21. Qd2 {[%emt 0:04:02]} h5 {[%emt 0:00:08]} 22. f3 {[%emt 0:02:31]} a5 {[%emt 0:01:17]} 23. Rc1 {[%emt 0:00:57]} h4 {[%emt 0:00:14]} 24. Ne2 {[%emt 0:00:57]} Qd7 {[%emt 0:00:42]} 25. b3 {[%emt 0:00:30]} Rc8 $11 {[%emt 0:03:37]} 26. Rxc8+ {[%emt 0:00:55]} Qxc8 {[%emt 0:00:17]} 1/2-1/2